Cogmind - Beta 12 @@@ ROGUE MODE // 2023.10.06 @ 09:59:13 Player: Trantor Result: Destroyed by D-53 Grenadier with Mini Grenade Launcher Performance ------------- Evolutions (0) 0 Regions Visited (2) 400 Robots Destroyed (19) 95 Value Destroyed (492) 492 Prototype IDs (2) 40 Alien Tech Used (0) 0 Bonus (0) 0 TOTAL SCORE: 1027 Bonus ------- None Cogmind --------- Core Integrity 0/250 Matter 289/300 Energy 249/250 System Corruption 3% Temperature Cool (0) Movement Core (550) Ox10 Location -10/Mines Parts ------- > --- POWER (1) -------- Ion Engine (fused) > --- PROPULSION (2) --- (None) > --- UTILITY (2) ------ Large Storage Unit Sensor Array > --- WEAPON (2) ------- Assault Rifle Light Cannon > --- INVENTORY (15) --- Ion Engine Light Treads Light Treads Light Treads Light Treads VTOL Module Improved Heat Sink Small Storage Unit High-capacity Matter Pod (156) Light Armor Plating Light Armor Plating Hacking Suite Assault Rifle Light Assault Rifle Peak State ------------ > --- POWER ------------ Ion Engine > --- PROPULSION ------- Aluminum Leg Aluminum Leg > --- UTILITY ---------- Improved Heat Sink Large Storage Unit > --- WEAPON ----------- Medium Laser Assault Rifle > --- INVENTORY -------- Ion Engine Light Treads Light Treads Light Treads Aluminum Leg Aluminum Leg Wheel Compact Wheel Small Storage Unit Assault Rifle [Rating: 10] Favorites ----------- Power Ion Engine Engine Ion Engine Propulsion Light Treads Treads Light Treads Leg Aluminum Leg Utility Large Storage Unit Device Improved Heat Sink Storage Large Storage Unit Weapon Assault Rifle Energy Gun Medium Laser Ballistic Gun Assault Rifle Ballistic Cannon Light Cannon Build | -11 -10 -10 ------- Run | Jun Mat Min Slots Evolved . | . . . Power . | . . . Propulsion . | . . . Utility . | . . . Weapon . | . . . Parts Attached 13 | . 12 1 Power 3 | . 3 . Engine 3 | . 3 . Core . | . . . Reactor . | . . . Propulsion 5 | . 5 . Treads 4 | . 4 . Leg 1 | . 1 . Wheel . | . . . Hover . | . . . Flight . | . . . Utility 3 | . 3 . Device 2 | . 2 . Storage 1 | . 1 . Processor . | . . . Hackware . | . . . Protection . | . . . Artifact . | . . . Weapon 2 | . 1 1 Energy Gun . | . . . Energy Cannon . | . . . Ballistic Gun 1 | . 1 . Ballistic Cannon 1 | . . 1 Launcher . | . . . Special Weapon . | . . . Impact Weapon . | . . . Slashing Weapon . | . . . Piercing Weapon . | . . . Special Melee Weapon . | . . . Unidentified Prototypes . | . . . Parts Lost 4 | . 2 2 Power 1 | . 1 . Propulsion 2 | . . 2 Utility . | . . . Weapon 1 | . 1 . Highest Loss Streak 2 | . 1 2 To Critical Strikes . | . . . Average Slot Usage (%) 97 | . 97 99 Engine 13 | . 13 14 Treads 24 | . 22 27 Leg 3 | . 5 . Device 13 | . 12 14 Storage 14 | . 14 14 Energy Gun 2 | . 3 . Ballistic Gun 20 | . 22 14 Ballistic Cannon 3 | . . 14 Naked Turns . | . . . Heaviest Build 31 | 14 30 31 Greatest Support 40 | 20 40 40 Greatest Overweight (x) 10 | . 1 10 Average Overweight (x) . | . . . Largest Inventory Capacity 15 | . 15 15 Average Capacity 14 | . 14 15 Most Carried 15 | . 15 15 Average Carried 13 | . 13 14 Final Capacity 15 | 8 15 15 Final Carried 15 | 6 15 14 Class Distribution -------------------- 100% | Mutant Dominant Class ---------------- Mutant | -10/Materials Mutant | -10/Mines Resources | -11 -10 -10 ----------- Run | Jun Mat Min Matter Collected 699 | 194 433 72 Remotely . | . . . Salvage Created 646 | . 582 64 Parts 45 | . 41 4 Haulers Intercepted 2 | . 2 . Recyclers Shooed . | . . . Parts Field Recycled . | . . . Retrieved Matter . | . . . Parts Self-Destructed . | . . . Prevented . | . . . Kills | -11 -10 -10 ------- Run | Jun Mat Min Combat Hostiles Destroyed 13 | . 11 2 Guns 11 | . 11 . Cannons 2 | . . 2 Classes Destroyed 6 | . 6 . Tunneler 1 | . 1 . Hauler 2 | . 2 . Operator 1 | . 1 . Watcher 2 | . 2 . Swarmer 2 | . 2 . Grunt 11 | . 9 2 Best Kill Streak 2 | . 2 2 Combat Bots Only 2 | . 2 2 Max Kills in Single Turn 2 | . 2 1 Gunslinging . | . . . Exploded . | . . . Melee . | . . . Uniques/NPCs Destroyed . | . . . Combat | -11 -10 -10 -------- Run | Jun Mat Min Damage Taken 1056 | . 520 536 Core 254 | . 112 142 Absorbed by Shields . | . . . Core Remaining (%) 100 | 100 . . Volleys Fired 49 | . 43 6 Largest 2 | . 2 2 Hottest 70 | . 70 55 Shots Fired 92 | . 81 11 Gun 88 | . 81 7 Cannon 4 | . . 4 Launcher . | . . . Special . | . . . Kinetic 83 | . 72 11 Thermal 9 | . 9 . Explosive . | . . . Electromagnetic . | . . . Robot Hit Streak 11 | . 11 5 Robot Miss Streak 2 | . 2 2 Penetration Max . | . . . Secondary Targets 1 | . 1 . Max Gunslinging Chain 1 | . 1 . Shots Hit Robots 64 | . 56 8 Core Hits 36 | . 31 5 Critical Kills . | . . . Critical Parts Destroyed . | . . . Critical Strikes 1 | . 1 . Burn 1 | . 1 . Melee Attacks . | . . . Impact . | . . . Slashing . | . . . Piercing . | . . . Sneak Attacks . | . . . Combat Hostiles . | . . . Follow-up Attacks . | . . . Damage Inflicted 804 | . 650 154 Guns 731 | . 650 81 Cannons 73 | . . 73 Explosions . | . . . Melee . | . . . Ramming . | . . . Kinetic 742 | . 588 154 Thermal 62 | . 62 . Explosive . | . . . Electromagnetic . | . . . Impact . | . . . Slashing . | . . . Piercing . | . . . Highest Corruption 3 | . 3 3 Average Corruption 2 | . 2 3 Corruption Purged . | . . . Corruption Blocked . | . . . Effects 28 | . 18 10 Message Errors 7 | . 5 2 Matter Fused 7 | . 4 3 Heat Flow Errors 2 | . 1 1 Energy Discharges 1 | . 1 . Parts Rejected 1 | . . 1 Parts Fused 1 | . 1 . Data Loss (minor) 5 | . 2 3 Data Loss (major) 2 | . 2 . Misfires 2 | . 2 . Overload Shots . | . . . Overflow Damage . | . . . Projectiles . | . . . Explosions . | . . . Melee . | . . . Knockbacks . | . . . Impact . | . . . Kinetic . | . . . Secondary . | . . . Self-Inflicted Damage . | . . . Shots . | . . . Rammed . | . . . Targets Rammed . | . . . Kicked . | . . . Crushed . | . . . Highest Temperature 180 | . 175 180 Average Temperature 79 | . 97 57 Received Heat Transfer 336 | . 222 114 Siege Activations . | . . . Robots Corrupted . | . . . Combat Hostiles . | . . . Parts Fried . | . . . Impact Corruptions . | . . . Robots Melted . | . . . Combat Hostiles . | . . . Parts Melted 2 | . 2 . Heat Transferred 259 | . 259 . Parts Sabotaged . | . . . Parts Stolen . | . . . Parts Stripped . | . . . Power Chain Reactions . | . . . Missiles Intercepted . | . . . Alert | -11 -10 -10 ------- Run | Jun Mat Min Peak Influence 217 | . 217 113 Initial 63 | . . 63 Average 61 | . 81 4 Maximum Alert Level 1 | . 1 . Low Security (%) 97 | . 96 100 Level 1 2 | . 3 . Level 2 . | . . . Level 3 . | . . . Level 4 . | . . . Level 5 . | . . . High Security . | . . . Max Security . | . . . Squads Dispatched 4 | . 4 . Investigation 2 | . 2 . Extermination . | . . . Reinforcement 2 | . 2 . Assault . | . . . Garrison . | . . . Intercept . | . . . Searches Triggered . | . . . Construction Impeded . | . . . Haulers Reinforced . | . . . Active Scanning Responses . | . . . Cargo Convoy Interrupts . | . . . Stealth | -11 -10 -10 --------- Run | Jun Mat Min Distress Signals 4 | . 4 . Communications Jammed . | . . . Distress Signals . | . . . Times Spotted 33 | . 26 7 Peak Tracking Total 5 | . 4 5 Tactical Retreats 3 | . 3 . Traps | -11 -10 -10 ------- Run | Jun Mat Min Traps Triggered 6 | . 6 . Indirectly . | . . . Trap Hack Attempts . | . . . Triggered . | . . . Disarmed . | . . . Reprogrammed . | . . . Reused . | . . . Traps Extracted . | . . . Installed . | . . . Triggered . | . . . Machines | -11 -10 -10 ---------- Run | Jun Mat Min Machines Disabled . | . . . Max in Single Turn . | . . . Machines Repaired . | . . . Machines Sabotaged . | . . . Overloaded Fab Kills . | . . . Hacking | -11 -10 -10 --------- Run | Jun Mat Min Machines Accessed 10 | . 9 1 Terminals 8 | . 7 1 Fabricators . | . . . Repair Stations . | . . . Recycling Units 2 | . 2 . Scanalyzers . | . . . Garrison Access . | . . . Total Hacks 39 | . 35 4 Successful 19 | . 17 2 Failed 20 | . 18 2 Catastrophic 3 | . 1 2 Database Lockouts . | . . . Manual 27 | . 23 4 Terminals 35 | . 31 4 Fabricators . | . . . Repair Stations . | . . . Recycling Units 4 | . 4 . Scanalyzers . | . . . Garrison Access . | . . . Terminal Hacks 8 | . 7 1 Part Schematic 1 | . 1 . Robot Analysis 1 | . 1 . Prototype ID Bank 1 | . 1 . Branch Access Points 1 | . 1 . Emergency Access Points 2 | . 2 . Unreport Threat 2 | . 1 1 Fabricator Hacks . | . . . Repair Station Hacks . | . . . Recycling Unit Hacks 3 | . 3 . Process 1 | . 1 . Report Inventory 1 | . 1 . Retrieve Matter 1 | . 1 . Scanalyzer . | . . . Garrison Access Hacks . | . . . Unauthorized Hacks 8 | . 7 1 Terminals 8 | . 7 1 Assimilate 2 | . 2 . Botnet 5 | . 4 1 Operators 1 | . 1 . Fabricators . | . . . Repair Stations . | . . . Recycling Units . | . . . Scanalyzers . | . . . Garrison Access . | . . . Data Cores Recovered . | . . . Used . | . . . Hacking Detections 8 | . 7 1 Full Trace Events 1 | . 1 . Feedback Events . | . . . Feedback Blocked . | . . . Robot Schematics Acquired . | . . . Robots Built . | . . . Authchips . | . . . Time . | . . . Total Robot Build Rating . | . . . Part Schematics Acquired 1 | . 1 . Parts Built . | . . . Authchips . | . . . Time . | . . . Total Part Build Rating . | . . . Parts Repaired . | . . . Time . | . . . Parts Recycled . | . . . Recycled Matter 8 | . 8 . Retrieved Matter 8 | . 8 . Retrieved Components . | . . . Parts Scanalyzed . | . . . Part Schematics Acquired . | . . . Parts Damaged . | . . . Bothacking | -11 -10 -10 ------------ Run | Jun Mat Min Used RIF Installer . | . . . Robots Hacked . | . . . Non-combat . | . . . Combat . | . . . Robot Hacks Applied . | . . . Relay Couplers Released . | . . . Fabnet Peak Effective % . | . . . Robots Rewired . | . . . Allies Hacked . | . . . Hacks Repelled . | . . . Allies | -11 -10 -10 -------- Run | Jun Mat Min Total Allies 1 | . 1 . Largest Group 1 | . 1 . Highest-Rated Group 10 | . 10 . Highest-Rated Ally 10 | . 10 . Total Orders . | . . . Ally Attacks . | . . . Total Damage . | . . . Kills . | . . . Allies Corrupted . | . . . Allies Melted . | . . . Intel | -11 -10 -10 ------- Run | Jun Mat Min Robot Analysis Total 1 | . 1 . Derelict Logs Recovered 1 | . . 1 Drone Launches . | . . . Drone Recoveries . | . . . Exploration | -11 -10 -10 ------------- Run | Jun Mat Min Turns Passed 2081 | . 1530 551 Spaces Moved 1088 | 1 804 283 Core 1 | . . 1 Treads 942 | . 660 282 Legs 145 | 1 144 . Wheels . | . . . Hover . | . . . Flight . | . . . Fastest Speed 120 | 120 120 160 Average Speed 162 | 120 162 161 Slowest Speed 550 | 120 240 550 Overloaded Moves . | . . . Propulsion Burnouts . | . . . Robots Hopped . | . . . Cave-ins Triggered . | . . . Exploration Rate (%) 50 | 2 98 52 Regions Visited 2 Branch Regions 1 Pre-discovered Areas . | . . . Known Exits Taken 1 | . 1 . Unknown Exits Taken 1 | 1 . . Scrap Searched . | . . . Spaces Dug . | . . . Terrain Destroyed . | . . . Melee . | . . . Projectile . | . . . AOE . | . . . Terrain Rammed . | . . . Walls Destroyed . | . . . Machines Disabled . | . . . Actions | -11 -10 -10 --------- Run | Jun Mat Min Total 1325 | . 955 370 Wait 144 | . 64 80 Move 1086 | . 803 283 Hop . | . . . Pick Up 17 | . 17 . Fast Attach 5 | . 5 . Attach 2 | . 1 1 Detach 3 | . 3 . Swap 6 | . 6 . Drop 13 | . 13 . Fire 49 | . 43 6 Melee . | . . . Ram . | . . . Kick . | . . . Crush . | . . . Escape Stasis . | . . . Rewire . | . . . Trap . | . . . Miscellaneous . | . . . Route ------- -11/Junkyard -10/Materials (discovered 5 exits: [*Mat x3] / *Min x2) -10/Mines (discovered 1 exit: [*Exi]) History --------- Turn | Location | Event 1 | -11/Junkyard | Discovered new exit (range 0) 1 | -11/Junkyard | Entered Materials 317 | -10/Materials | Build established: Mutant 413 | -10/Materials | Discovered new exit (range 16) 661 | -10/Materials | Identified exit to Mines 1097 | -10/Materials | Discovered new exit (range 3) 1251 | -10/Materials | Discovered new exit (range 11) 1531 | -10/Materials | Entered Mines 1536 | -10/Mines | Core integrity fell below 50% 1575 | -10/Mines | Deemed a non-threat by the Exiles lab entrance 1576 | -10/Mines | Discovered new exit (range 5) 1615 | -10/Mines | Learned Materials terminal intel 1741 | -10/Mines | Assembled infested the area 2075 | -10/Mines | Core integrity fell below 20% 2082 | -10/Mines | Destroyed by D-53 Grenadier with Mini Grenade Launcher Last Messages --------------- 02023_ T-07 Excavator is excavating. 02025_ K-01 Serf collects debris. 02027_ T-07 Excavator is excavating. 02029_ A derelict emerges from the shadows: "Quick, help me dispose of these Unaware!" 02029_ K-01 Serf collects debris. 02033_ Y8-OYO(g): "Mission, incomplete...*fzzt*" 02033_ Y8-OYO(g) destroyed. 02036_ K-01 Serf collects debris. 02068_ G-47 Trooper: "SECOND INTRUDER APPROACHING. ELIMINATE." 02068_ K-01 Serf collects debris. 02069_ System corrupted: Matter fused (-5). 02075_ T-07 Excavator is excavating. 02075_ D-53 Grenadier destroyed. 02076_ Lgt. Treads destroyed. 02077_ K-01 Serf collects debris. 02079_ T-07 Excavator is excavating. 02081_ K-01 Serf collects debris. 02081_ Lgt. Treads destroyed. 02081_ K-01 Serf cleans the Pressure Siphon. Map ----- +----------------------------------------------------+ | ???????????????????????????????????????????????? | | ???????????????????????????????????????????????? | | ???????????????????????????????????????????????? | | ???????????????????????????????????????????????? | | ???????????????????????????????????????????????? | | ???????????????????????????????????????????????? | | ?????????????????????????????????????????????### | | ??????????????????????????????????????????#### | | ?????????????????????????????????????????## | | ?????????????????????????????????????????# | | ????????????????????????????????????????? | | ???????????????????????????? ?? ??????????? | | ???????????????????????????? ##???????????# | | ???????????????????????????? ??????????? | | ????????????????????????????? ??????????? | | ?????????????????????????????# ???????????? | | ?????????????????????????????# ????####????? | | ???????????#####?????????????# #???## ##???? | | ???????????# ##????????????# #???## ##### | | ??????????## ###?????????## ##?## | | ??????????# #####????## ### #### | | ??????????# # ####?# ##??# | | ?????## # ### ###???# | | ?????# t #r """ #####?????# | | ?????# k """ ##?????????# | | ?????# d@ """ #??????????? | | ????????#### gg """ #???????#### | | ???????????## g #### k #??????## | | ???????????## # #??## #??????# | | ??????????## ### #???# ##?????## | | ??????????# #?## # # ##???## ?#?????## | | ??????????# ##?########?????# ##????# | | ??????????# #?????????????## ##???# | | ??????????## #?????????????# ###?# | | ???????????# ##?????????????# #### # | | ???????????# ##??????????????# #?## ## | | ???????????# #???????????????## #??####? | | ???????????# #????????????????## #??????? | | ???????????% ?????????????????### #######? | | ??????????? ???????????????????## ## ## | | ??????????? ????????????????????# # | | ?????????? ????????????????????# # | | ??????????# ????????????????????# ##### | | ??????????## ????????????????????## #####???? | | ???????????####?????????????????????####???????? | | ???????????????????????????????????????????????? | | ???????????????????????????????????????????????? | | ???????????????????????????????????????????????? | | | | | +----------------------------------------------------+ Best States ------------- Heat Dissipation 39 Energy Generation 10 Energy Capacity 250 Matter Stores 300 Matter Capacity 300 Sight Range 16 Robot Scan Range 14 Terrain Scan Density 10 Evasion (%) 55 Recoil Reduction 2 Item Schematics ----------------- Lrg. Storage Unit | -10/Materials | Hacked Robot Schematics ------------------ None Fabricated ------------ Nothing Alien Tech Used ----------------- None Achievements -------------- None Challenges ------------ None Game ------ Seed ShrapnelGhostCharger Manual? 0 Play Time 00:17:39 Cumulative 262.1 hours Start 2023.10.05 @ 19:31:38 End 2023.10.06 @ 09:59:13 Sessions 2 Manual Loads 0 Difficulty Rogue Special Mode None Game No. 148 Rogue 104 Adventurer 44 Explorer 0 Win Type - Total 2 Types 2/0/0/0/0/0/0/0/0 Lore% 61 Gallery% 64 Achievement% 58 Wizard Run 0 Options --------- ASCII 0 Keyboard 1 Movement Vi Keybinds 1 Fullscreen 2 Font 18/X11Bold Map View 76x50 Tactical HUD 1 Map Filters NONE Filters NONE Steam 1 RUN: f1bbc48e-f383-4065-9f8b-b11d44b7fdd7